bitfinex/quotes_ETHUSD_20250803
["timestamp","ask_amount","ask_price","bid_price","bid_amount"]
[1754250479987,0.9693,3505.7,3505.6,11.3954]
[1754250480573,0.9693,3505.7,3505.6,14.3954]
[1754250488626,0.9693,3505.7,3505.6,11.253]
[1754250489036,0.9693,3505.7,3505.6,4.396]
[1754250489235,1.1117,3505.7,3505.6,4.396]
[1754250496348,1.1117,3505.7,3505.2,0.1424]
[1754250496547,0.1434,3505.7,3505.5,4.396]
[1754250496744,0.9683,3505.6,3505.5,4.396]
[1754250497737,0.4963,3505.6,3505.5,4.396]
[1754250498254,0.001,3505.7,3505.5,4.5384]
[1754250500548,0.9683,3505.6,3505.5,7.5384]
[1754250502644,0.4963,3505.6,3505.5,7.5384]
[1754250503026,0.001,3505.7,3505.5,7.5384]
[1754250503232,0.001,3505.7,3505.6,0.02852578]
[1754250504421,0.001,3505.7,3505.6,3.02852578]
[1754250505252,0.001,3505.7,3505.6,3.57852578]
[1754250505455,0.001,3505.7,3505.6,3.72092578]
[1754250506465,0.001,3505.7,3505.6,3.6924]
[1754250508140,0.001,3505.7,3505.6,4.1897]
[1754250508542,0.001,3505.7,3505.6,4.21822578]
[1754250508738,0.001,3505.7,3505.6,7.07080451]
[1754250508924,0.001,3505.7,3505.6,7.04227873]
[1754250509272,0.001,3505.7,3505.6,11.27227873]
[1754250511055,0.001,3505.7,3505.6,8.4197]
[1754250511256,0.001,3505.7,3505.6,12.2647]
[1754250511426,0.001,3505.7,3505.6,12.8147]
[1754250513168,0.001,3505.7,3505.6,15.66727873]
[1754250513370,0.001,3505.7,3505.6,8.5847]
[1754250513537,0.001,3505.7,3505.6,11.43727873]
[1754250513866,0.001,3505.7,3505.6,8.5847]
[1754250514271,0.001,3505.7,3505.6,11.43727873]
[1754250514776,0.001,3505.7,3505.6,8.5847]
[1754250515064,0.001,3505.7,3505.6,11.43727873]
[1754250515223,0.001,3505.7,3505.6,8.5847]
[1754250516267,0.001,3505.7,3505.6,11.43727873]
[1754250517427,0.001,3505.7,3505.6,11.43627873]
[1754250518624,0.001,3505.7,3505.6,15.66627873]
[1754250519435,0.001,3506.1,3506.0,6.40225328]
[1754250519739,0.001,3506.1,3506.0,15.16865328]
[1754250521564,0.457,3507.1,3506.8,3.55]
[1754250521765,0.457,3507.1,3507.0,3.55]
[1754250521968,0.9299,3507.1,3507.0,4.943]
[1754250522498,0.001,3507.1,3507.0,10.93683997]
[1754250522968,0.001,3507.1,3507.0,11.40973997]
[1754250523338,0.001,3507.1,3507.0,8.5583]
[1754250524569,0.001,3507.1,3507.0,11.40973997]
[1754250528286,0.001,3507.1,3507.0,15.63973997]
[1754250529384,0.9299,3507.1,3507.0,15.63973997]
[1754250529690,0.9299,3507.1,3507.0,12.2383]
[1754250530664,0.9299,3507.1,3507.0,12.7883]
[1754250532556,0.9299,3507.1,3507.0,3.6153]
[1754250532894,0.9299,3507.1,3507.0,8.0063]
[1754250533584,0.9299,3507.1,3507.0,7.5334]
[1754250533886,0.9299,3507.1,3507.0,3.1424]
[1754250534085,0.9299,3507.1,3507.0,7.5334]
[1754250540272,0.8799,3507.1,3507.0,7.5334]
[1754250543502,0.8799,3507.1,3507.0,4.5334]
[1754250544501,0.8799,3507.1,3507.0,4.391]
[1754250547472,1.0223,3507.1,3507.0,4.391]
[1754250548409,2.7202493,3507.1,3506.8,4.39]
[1754250548619,1.6979493,3507.1,3506.8,4.39]
[1754250548777,0.1424,3506.9,3506.8,4.39]
[1754250548984,1.0598,3506.9,3506.8,4.39]
[1754250550983,1.0598,3506.9,3506.6,4.391]
[1754250551320,0.1424,3506.7,3506.6,4.391]
[1754250551645,1.0598,3506.7,3506.6,4.391]
[1754250554710,1.0598,3506.7,3506.2,4.391]
[1754250554908,0.1424,3506.3,3506.1,4.393]
[1754250555226,0.9174,3506.2,3506.1,4.393]
[1754250555519,2.6190993,3506.2,3506.1,4.393]
[1754250555726,2.6190993,3506.2,3506.1,0.002]
[1754250557110,35.6190993,3506.2,3506.1,0.002]
[1754250557908,36.1690993,3506.2,3506.1,0.002]
[1754250559532,40.5600993,3506.2,3506.1,0.002]
[1754250560048,45.95719296,3505.8,3505.7,0.002]
[1754250560346,51.82544003,3505.8,3505.7,0.002]
[1754250560647,52.88524003,3505.8,3505.7,0.002]
[1754250561646,53.43524003,3505.8,3505.7,0.002]
[1754250562643,53.43524003,3505.8,3505.1,0.002]
[1754250562644,3.55,3505.5,3505.1,0.002]
[1754250562848,30.1424,3505.2,3505.1,0.002]
[1754250563060,3.01064707,3505.2,3505.1,0.002]
[1754250563406,3.92804707,3505.2,3505.1,0.002]
[1754250566222,1.0598,3505.2,3505.1,0.002]
[1754250567556,0.1424,3505.2,3505.1,0.002]
[1754250567856,1.0598,3505.2,3505.1,0.002]
[1754250570059,0.1424,3505.2,3505.1,0.002]
[1754250570351,1.0577,3505.2,3505.1,0.002]
[1754250570520,1.60267,3505.2,3505.1,0.002]
[1754250575336,5.99367,3505.2,3505.1,0.002]
[1754250578054,6.54367,3505.2,3505.1,0.002]
[1754250579241,22.50086296,3505.2,3505.1,0.002]
[1754250580661,52.50086296,3505.2,3505.1,0.002]
[1754250583367,55.50086296,3505.2,3505.1,0.002]
[1754250589872,38.99367,3505.2,3505.1,0.002]
[1754250591458,34.60267,3505.2,3505.1,0.002]
[1754250591662,38.99367,3505.2,3505.1,0.002]
[1754250592994,34.60267,3505.2,3505.1,0.002]
[1754250593139,38.99267,3505.2,3505.1,0.002]
[1754250593979,34.60267,3505.2,3505.1,0.002]
[1754250594279,38.99267,3505.2,3505.1,0.002]
[1754250596858,34.60267,3505.2,3505.1,0.002]
[1754250597173,38.99267,3505.2,3505.1,0.002]
[1754250597477,33.68737,3505.2,3505.1,0.002]
[1754250597775,7.5324,3505.2,3505.1,0.002]
[1754250598005,7.5324,3505.2,3505.1,0.051]
[1754250598168,7.5324,3505.2,3505.1,0.002]
[1754250598805,0.1424,3505.2,3505.1,0.002]
[1754250598992,0.1424,3505.2,3505.1,0.051]
[1754250600072,0.1424,3505.2,3505.1,0.002]
[1754250603892,0.001,3505.7,3505.1,0.051]
[1754250604124,0.1424,3505.4,3505.1,0.051]
[1754250605232,0.9421,3505.3,3505.1,0.002]
[1754250605390,0.67551,3505.2,3505.1,0.002]
[1754250605724,1.61761,3505.2,3505.1,0.002]
[1754250605891,36.00661,3505.2,3505.1,0.002]
[1754250607831,6.00561,3505.2,3505.1,0.002]
[1754250608026,1.61761,3505.2,3505.1,0.002]
[1754250608325,4.5304,3505.2,3505.1,0.002]
[1754250609300,0.6141,3505.2,3505.1,0.002]
[1754250609499,15.4725,3505.2,3505.1,0.002]
[1754250609794,5.4725,3505.2,3505.1,0.002]
[1754250610000,35.4725,3505.2,3505.1,0.002]
[1754250610233,38.34074707,3505.2,3505.1,0.002]
[1754250610934,42.67597767,3505.2,3505.1,0.002]
[1754250611135,8.28797767,3505.2,3505.1,0.002]
[1754250611440,9.3373306,3505.2,3505.1,0.002]
[1754250611620,9.8077306,3505.2,3505.1,0.002]
[1754250612710,5.4197306,3505.2,3505.1,0.002]
[1754250612902,9.8077306,3505.2,3505.1,0.002]
[1754250616040,5.4197306,3505.2,3505.1,0.002]
[1754250616245,10.34970366,3505.2,3505.1,0.002]
[1754250618512,10.34870366,3505.2,3505.1,0.002]
[1754250620268,4.4776306,3505.2,3505.1,0.002]
[1754250620415,1.4776306,3505.2,3505.1,0.002]
[1754250620620,1.4776306,3505.2,3505.1,0.051]
[1754250624022,1.4776306,3505.2,3505.1,0.002]
[1754250625455,1.9493306,3505.2,3505.1,0.002]
[1754250626652,1.4776306,3505.2,3505.1,0.002]
[1754250629954,2.4296306,3505.2,3505.1,0.002]
[1754250635574,2.67259366,3505.2,3505.1,0.002]
[1754250636032,5.67259366,3505.2,3505.1,0.002]
[1754250636236,35.67259366,3505.2,3505.1,0.002]
[1754250636861,40.05759366,3505.2,3505.1,0.002]
[1754250645286,56.96217124,3505.2,3505.1,0.002]
[1754250645863,3.55,3504.9,3504.8,0.002]
[1754250646191,33.55,3504.8,3504.7,0.002]
[1754250646485,50.45919296,3504.8,3504.7,0.002]
[1754250646992,50.85657758,3504.8,3504.7,0.002]
[1754250648692,50.45919296,3504.8,3504.7,0.002]
[1754250648897,53.32744003,3504.8,3504.7,0.002]
[1754250651395,60.37744003,3504.8,3504.7,0.002]
[1754250653762,64.76144003,3504.8,3504.7,0.002]
[1754250656671,65.15882465,3504.8,3504.7,0.002]
[1754250656878,60.77482465,3504.8,3504.7,0.002]
[1754250657108,65.15882465,3504.8,3504.7,0.002]
[1754250657813,65.15882465,3504.8,3504.3,0.002]
[1754250657814,6.558,3504.7,3504.3,0.002]
[1754250658108,40.55,3504.0,3502.9,0.002]
[1754250658269,49.64959296,3504.0,3502.9,0.002]
[1754250658468,62.03559296,3504.0,3502.9,0.002]
[1754250658707,64.80887225,3504.0,3502.9,0.002]
[1754250659319,3.8358,3503.9,3502.9,0.002]
[1754250659612,49.64959296,3503.0,3502.9,0.002]
[1754250659773,54.03259296,3503.0,3502.9,0.002]
[1754250659973,54.94109296,3503.0,3502.9,0.002]
[1754250660219,57.80934003,3503.0,3502.9,0.002]
[1754250661320,3.0,3502.9,3502.0,0.049]
[1754250661523,33.9085,3502.9,3502.0,0.049]
[1754250661827,30.0,3502.5,3502.0,0.049]
[1754250661968,4.384,3502.4,3501.1,0.1432]
[1754250662168,30.0,3502.3,3500.6,3.0]
[1754250662370,30.0,3502.3,3500.2,0.14671225]
[1754250662371,0.1432,3501.4,3501.2,0.004]
[1754250662611,0.1432,3501.4,3501.3,0.049]
[1754250662909,1.40286332,3501.3,3500.9,0.35604322]
[1754250663122,1.40286332,3501.3,3500.9,0.1432]
[1754250663522,1.40286332,3501.3,3501.1,0.004]
[1754250665919,1.40286332,3501.3,3501.2,0.1432]
[1754250666255,1.40286332,3501.3,3501.2,0.17576163]
[1754250666421,1.40286332,3501.3,3501.2,0.1472]
[1754250667452,1.40286332,3501.3,3501.2,0.17576163]
[1754250667753,1.40286332,3501.3,3501.2,0.1472]
[1754250669929,0.1424,3502.7,3501.5,0.55]
[1754250670125,0.1424,3502.7,3502.2,0.1424]
[1754250670820,0.1424,3502.7,3502.2,0.1464]
[1754250671023,0.1424,3502.7,3502.2,0.1424]
[1754250671237,0.4295,3502.6,3501.3,3.0]
[1754250671529,0.9085,3502.6,3501.4,0.004]
[1754250671852,0.9085,3502.6,3501.3,3.0]
[1754250671853,0.1424,3502.0,3501.5,0.1424]
[1754250672155,30.0,3501.6,3501.0,0.99]
[1754250672314,0.9085,3501.9,3501.0,0.99]
[1754250672315,3.77674707,3501.5,3501.0,0.99]
[1754250672521,0.9085,3501.4,3501.0,0.99]
[1754250672855,13.0,3501.8,3501.0,0.99]
[1754250673058,4.384,3501.7,3501.0,0.99]
[1754250673479,0.9085,3501.6,3501.0,0.99]
[1754250673655,30.0,3501.4,3501.0,0.99]
[1754250673855,40.0,3501.1,3499.8,0.11399789]
[1754250674195,30.0,3500.8,3499.8,0.11399789]
[1754250674401,4.8125,3500.7,3499.8,0.11399789]
[1754250674552,5.2915,3500.7,3499.8,0.11399789]
[1754250674758,0.9085,3500.6,3499.8,0.11399789]
[1754250675557,0.479,3500.5,3499.8,0.11399789]
[1754250675996,0.479,3501.2,3499.9,0.1464]
[1754250676182,4.384,3501.1,3500.0,0.004]
[1754250676483,5.6351443,3501.5,3500.2,15.95719296]
[1754250676687,0.479,3501.4,3500.3,0.1464]
[1754250678283,0.479,3501.4,3500.3,0.1424]
[1754250678482,0.479,3501.9,3500.4,0.03256816]
[1754250678676,4.384,3501.8,3500.5,0.1464]
[1754250678874,4.384,3501.8,3500.6,0.004]
[1754250679175,3.0,3502.3,3500.8,3.0]
[1754250679176,0.479,3502.1,3500.8,3.0]
[1754250679513,0.479,3502.6,3500.9,0.1464]
[1754250679718,0.479,3502.4,3501.0,0.004]
[1754250680082,0.479,3502.4,3501.1,0.1424]
[1754250680305,0.479,3502.4,3501.2,0.004]
[1754250680504,0.479,3502.4,3501.3,0.1424]
[1754250681535,0.4295,3502.3,3501.3,0.1424]
[1754250681944,0.4295,3502.3,3501.0,0.1424]
[1754250681945,0.479,3502.2,3501.0,0.1424]
[1754250682118,0.1424,3502.0,3501.5,0.1424]
[1754250682320,0.6214,3502.0,3501.5,0.1424]
[1754250684022,0.1424,3502.0,3501.5,0.1424]
[1754250684228,0.6214,3502.0,3501.5,0.1424]
[1754250684832,0.1424,3502.0,3501.5,0.1424]
[1754250685032,0.1424,3502.0,3500.9,2.85639276]
[1754250685033,0.1424,3502.2,3501.6,0.1424]
[1754250685239,0.4295,3502.5,3501.6,0.1424]
[1754250685240,0.1424,3502.6,3502.1,0.1424]
[1754250685533,1.0509,3502.6,3502.1,0.1424]
[1754250685732,0.479,3502.5,3502.1,0.1424]
[1754250686038,0.9085,3502.5,3502.1,0.1424]
[1754250688043,0.479,3502.4,3502.1,0.1424]
[1754250688474,0.9085,3502.4,3502.1,0.1424]
[1754250688670,0.9085,3502.4,3501.7,0.1424]
[1754250688858,0.1424,3502.2,3501.7,0.1424]
[1754250689061,0.9332,3502.1,3501.7,0.1424]
[1754250690840,0.1424,3502.2,3501.7,0.1424]
[1754250691169,0.9332,3502.1,3501.7,0.1424]
[1754250692037,0.9332,3502.1,3501.6,0.21836308]
[1754250692240,13.0,3504.2,3502.0,0.1424]
[1754250692475,0.9332,3502.8,3502.0,0.1424]
[1754250692777,0.9332,3502.8,3502.5,0.1424]
[1754250692949,0.1424,3503.0,3502.5,0.1424]
[1754250693349,0.6129,3503.0,3502.5,0.1424]
[1754250693557,0.4705,3503.0,3502.2,0.1424]
[1754250693758,0.4705,3503.0,3502.8,0.1424]
[1754250694072,0.9332,3503.0,3502.8,0.1424]
[1754250694844,0.9332,3502.9,3502.8,0.1424]
[1754250698092,0.001,3503.3,3502.8,0.1464]
[1754250698306,0.001,3503.3,3503.0,3.0]
[1754250698606,0.001,3503.3,3502.5,0.21884]
[1754250698806,0.001,3503.3,3503.2,3.0]
[1754250700503,0.9342,3503.3,3502.2,3.0]
[1754250700704,0.001,3503.3,3502.8,3.0]
[1754250701005,0.9332,3503.2,3502.7,0.21026012]
[1754250701169,0.9332,3503.1,3502.8,3.0]
[1754250701369,0.9332,3503.0,3502.8,3.0]
[1754250701710,0.9332,3502.9,3502.8,3.0]
[1754250701905,0.9332,3502.9,3502.7,4.382]
[1754250702283,0.001,3503.3,3502.7,4.382]
[1754250702284,0.9332,3502.8,3502.7,4.382]
[1754250702480,0.9332,3502.8,3502.0,6.864]
[1754250702684,0.9332,3502.7,3502.1,4.381]
[1754250702910,0.9332,3502.7,3502.2,3.0]
[1754250703296,0.4705,3503.1,3502.2,3.21317623]
[1754250703621,0.9342,3503.3,3502.3,0.1424]
[1754250703819,0.4637,3503.3,3502.3,0.1424]
[1754250704024,0.4705,3503.1,3502.3,0.1424]
[1754250705521,0.9332,3503.1,3502.3,0.1424]
[1754250705725,0.4627,3503.1,3502.2,3.21317623]
[1754250705888,0.9332,3503.0,3502.2,0.21317623]
[1754250706089,0.9332,3502.9,3502.1,7.381]
[1754250706331,0.9332,3502.8,3502.1,7.381]
[1754250706500,0.4705,3502.7,3502.1,7.381]
[1754250707104,0.4705,3502.8,3502.1,7.59624091]
[1754250708006,0.4705,3502.8,3502.7,0.1424]
[1754250708394,0.4705,3502.8,3502.6,0.1424]
[1754250708593,0.4627,3502.7,3502.6,0.1424]
[1754250708993,0.9332,3502.7,3502.6,0.1424]
[1754250713047,0.9332,3502.7,3502.5,0.1424]
[1754250713250,0.9332,3502.6,3502.5,0.1424]
[1754250715048,0.9332,3502.6,3502.4,4.381]
[1754250715254,0.1424,3502.7,3502.2,0.1424]
[1754250715551,0.9332,3502.5,3502.2,0.1424]
[1754250715847,0.9332,3502.4,3502.2,0.1424]
[1754250716014,0.9332,3502.3,3502.2,0.1424]
[1754250716751,0.9332,3502.3,3502.0,0.1424]
[1754250717052,0.9332,3502.2,3502.0,0.1424]
[1754250717251,0.9332,3502.1,3502.0,0.1424]
[1754250717465,0.9332,3502.1,3501.9,4.381]
[1754250717753,0.9332,3502.0,3501.9,4.381]
[1754250718063,0.9332,3502.0,3501.8,0.1424]
[1754250718217,0.9332,3501.9,3501.8,0.1424]
[1754250719516,0.1424,3502.3,3501.8,0.1424]
[1754250719719,0.1424,3502.3,3501.4,4.381]
[1754250719720,0.9343,3502.8,3502.2,0.1424]
[1754250719890,0.001,3503.3,3502.1,3.0]
[1754250720084,0.001,3503.3,3503.0,0.1424]
[1754250720687,0.4918,3503.2,3503.0,0.1424]
[1754250721373,0.001,3503.3,3503.0,0.1424]
[1754250721577,0.001,3503.3,3503.1,0.03254614]
[1754250721778,0.001,3503.3,3503.2,3.1424]
[1754250722028,0.001,3503.3,3503.2,3.1464]
[1754250722206,0.001,3503.3,3503.2,3.2888]
[1754250722712,0.001,3503.3,3503.2,7.87925417]
[1754250723296,0.001,3503.3,3503.2,7.87525417]
[1754250723920,0.001,3503.3,3503.2,3.35185417]
[1754250724214,0.001,3503.3,3503.2,7.73185417]
[1754250725204,0.9353,3503.3,3503.2,0.35185417]
[1754250725416,0.001,3503.3,3503.2,4.73185417]
[1754250725716,0.9353,3503.3,3503.2,4.73185417]
[1754250727518,0.9353,3503.3,3503.2,0.35185417]
[1754250728085,0.9353,3503.3,3503.2,0.1424]
[1754250728289,0.9353,3503.3,3502.3,3.0]
[1754250728290,0.9353,3503.3,3503.1,4.5224]
[1754250728485,0.001,3503.3,3503.1,4.5224]
[1754250728710,0.9343,3503.2,3503.1,4.5224]
[1754250728890,0.9343,3503.2,3503.1,4.38]
[1754250731417,0.9343,3503.2,3502.9,0.1424]
[1754250731625,0.9343,3503.1,3502.9,0.1424]
[1754250731918,1.0767,3503.0,3502.3,4.5214]
[1754250732120,0.001,3503.3,3502.3,4.5214]
[1754250732121,0.1424,3502.8,3502.3,4.5214]
[1754250732490,0.9343,3502.7,3502.3,4.5214]
[1754250732685,0.9343,3502.6,3502.3,4.5214]
[1754250732888,0.1424,3502.8,3502.3,4.5214]
[1754250733119,0.9343,3502.5,3502.3,4.5214]
[1754250733419,0.9343,3502.4,3502.3,4.5214]
[1754250733806,0.9343,3502.4,3502.3,0.1424]
[1754250734006,0.9343,3502.7,3502.3,0.1424]
[1754250734208,0.9343,3502.6,3502.3,0.1424]
[1754250734921,0.1424,3502.8,3502.3,0.1424]
[1754250735097,0.4928,3503.3,3502.3,0.1424]
[1754250735298,0.4918,3503.2,3502.2,0.20912155]
[1754250735611,0.1424,3503.0,3502.2,4.379]
[1754250735798,0.9343,3502.9,3502.2,4.379]
[1754250736124,0.9343,3502.8,3502.2,4.379]
[1754250736320,0.1424,3503.0,3502.4,0.1424]
[1754250736525,0.9343,3502.7,3502.4,0.1424]
[1754250736818,0.9343,3502.6,3502.4,0.1424]
[1754250737021,0.4918,3502.5,3502.4,0.1424]
[1754250737821,1.0767,3503.0,3502.4,0.1424]
[1754250738023,0.4918,3502.9,3502.4,0.1424]
[1754250738198,0.4425,3502.8,3502.4,0.1424]
[1754250738724,0.4918,3502.9,3502.4,0.1424]
[1754250738725,0.1424,3503.0,3502.4,0.1424]
[1754250738925,0.9343,3502.7,3502.4,0.1424]
[1754250739219,0.1424,3503.0,3502.4,0.1424]
[1754250739421,0.4918,3502.6,3502.4,0.1424]
[1754250739788,0.9343,3502.6,3502.4,0.1424]
[1754250740194,0.4918,3502.5,3502.4,0.1424]
[1754250740397,0.9343,3502.5,3502.4,0.1424]
[1754250740698,0.4918,3502.5,3502.4,0.1424]
[1754250740905,0.4918,3502.7,3502.4,0.1424]
[1754250741225,0.9343,3502.7,3502.4,0.1424]
[1754250741524,0.4425,3502.7,3502.4,0.1424]
[1754250741733,0.4918,3502.6,3502.4,0.1424]
[1754250742116,0.9343,3502.6,3502.4,0.1424]
[1754250744635,0.9343,3502.5,3502.4,0.1424]
[1754250749101,0.4918,3502.5,3502.4,0.1424]
[1754250750841,0.9386,3502.5,3502.4,0.1424]
[1754250751519,0.4532,3502.7,3502.4,0.1424]
[1754250751713,0.1424,3503.0,3502.4,0.1424]
[1754250751913,0.9,3502.9,3502.4,0.1424]
[1754250752237,0.9,3502.8,3502.4,0.1424]
[1754250752425,0.5892,3503.0,3502.4,0.1424]
[1754250752608,0.9,3502.8,3502.4,0.1424]
[1754250752941,0.4532,3502.7,3502.4,0.1424]
[1754250753445,0.9,3502.7,3502.4,0.1424]
[1754250753644,0.1424,3503.0,3502.4,0.1424]
[1754250753830,0.9,3502.6,3502.4,0.1424]
[1754250754138,0.9,3502.5,3502.4,0.1424]
[1754250758039,0.4532,3502.5,3502.4,0.1424]
[1754250760330,0.9,3502.5,3502.4,0.1424]
[1754250761953,1.0434,3502.5,3502.2,4.58729553]
[1754250762116,0.9,3502.4,3502.2,4.58729553]
[1754250762316,0.9,3502.3,3502.2,0.20929553]
[1754250762516,0.9,3502.3,3502.0,0.1424]
[1754250762817,0.9,3502.2,3502.0,0.1424]
[1754250763018,0.9,3502.1,3501.6,4.378]
[1754250763213,0.9,3502.0,3501.8,0.1424]
[1754250763426,0.1424,3502.3,3501.8,0.1424]
[1754250763630,0.9,3501.9,3501.8,0.1424]
[1754250765013,0.9,3501.9,3501.0,3.002]
[1754250765240,0.001,3502.5,3501.0,3.002]
[1754250765241,0.9,3501.8,3501.1,4.378]
[1754250765440,0.9,3501.7,3501.1,4.5212]
[1754250765654,1.0424,3501.6,3501.1,4.73908931]
[1754250765852,0.1424,3501.6,3501.1,4.73908931]
[1754250766152,0.9,3501.5,3501.1,4.73908931]
[1754250766320,0.1424,3501.6,3501.1,0.36108931]
[1754250766655,0.9,3501.4,3501.1,0.36108931]
[1754250766843,0.4468,3501.3,3501.1,0.36108931]
[1754250767253,0.4532,3501.2,3501.1,0.36108931]
[1754250768062,0.9,3501.2,3501.1,0.36108931]
[1754250768269,0.9,3501.2,3501.1,0.21788931]
[1754250768565,0.9,3501.2,3501.0,0.1452]
[1754250768761,0.4532,3501.1,3501.0,0.1452]
[1754250768961,0.9,3501.1,3501.0,0.1452]
[1754250770055,0.4468,3501.4,3501.0,0.35714765]
[1754250770251,0.9,3501.3,3501.0,0.35714765]
[1754250770458,0.9,3501.3,3501.0,0.1452]
[1754250771047,0.4532,3501.2,3501.0,0.1452]
[1754250771254,0.9,3501.2,3501.0,0.1452]
[1754250771559,0.4532,3501.1,3501.0,0.1452]
[1754250773269,0.4468,3501.2,3501.0,0.1452]
[1754250773444,0.4468,3501.2,3501.0,0.36235466]
[1754250773842,0.9,3501.2,3501.0,0.36235466]
[1754250774967,0.4532,3501.5,3501.0,0.36235466]
[1754250775173,0.4532,3501.4,3501.0,0.36235466]
[1754250775965,0.1424,3501.6,3501.0,0.36235466]
[1754250776172,0.9,3501.5,3501.0,0.36235466]
[1754250776354,0.1424,3501.6,3501.0,0.36235466]
[1754250776560,0.9,3501.4,3501.0,0.36235466]
[1754250776858,0.9,3501.3,3501.0,0.36235466]
[1754250777058,0.1424,3501.6,3501.0,0.36235466]
[1754250777257,0.9,3501.2,3501.0,0.36235466]
[1754250777454,0.4468,3501.2,3501.0,0.36235466]
[1754250777659,0.9,3501.1,3501.0,0.36235466]
[1754250781265,0.4615,3501.3,3501.0,0.36235466]
[1754250781654,0.9237,3501.3,3501.0,0.36235466]
[1754250781866,0.4622,3502.0,3501.0,0.21915466]
[1754250782175,0.4615,3501.9,3501.2,0.1432]
[1754250782380,0.4615,3501.9,3501.5,0.1424]
[1754250782742,0.4622,3501.8,3501.5,0.1424]
[1754250783386,0.4615,3501.7,3501.3,0.1432]
[1754250783745,0.4622,3501.6,3501.3,0.1432]
[1754250784140,0.4615,3501.5,3501.3,0.1432]
[1754250784678,0.4622,3501.4,3501.3,0.1432]
[1754250785180,0.9237,3501.4,3501.3,0.1432]
[1754250785399,0.1424,3501.8,3501.3,0.1432]
[1754250785550,0.9237,3501.6,3501.3,0.1432]
[1754250785748,0.4622,3501.5,3501.3,0.1432]
[1754250786070,0.9237,3501.4,3501.3,0.1432]
[1754250790997,0.9237,3501.4,3501.0,4.59715466]
[1754250791296,0.9237,3501.3,3501.0,4.59715466]
[1754250791467,0.1424,3501.8,3501.0,4.59715466]
[1754250791675,0.9237,3501.7,3501.2,0.1432]
[1754250791872,0.9237,3501.6,3501.2,0.1432]
[1754250792098,0.1424,3501.8,3501.2,0.1432]
[1754250792290,0.9237,3501.5,3501.2,0.1432]
[1754250792471,0.9237,3501.4,3501.2,0.1432]
[1754250792799,0.9237,3501.3,3501.2,0.1432]
[1754250796888,0.9237,3501.3,3501.0,4.59715466]
[1754250797073,0.9237,3501.2,3501.0,4.74035466]
[1754250797274,0.1424,3501.5,3501.0,4.74035466]
[1754250797469,0.9237,3501.1,3501.0,4.74035466]
[1754250798774,0.4615,3501.4,3501.0,4.74035466]
[1754250798971,0.9237,3501.4,3501.0,4.74035466]
[1754250801033,0.9237,3501.4,3501.0,4.59715466]
[1754250801239,0.4615,3501.4,3501.2,0.1432]
[1754250801434,0.6046,3501.7,3501.2,0.1432]
[1754250801640,0.1424,3501.7,3501.2,0.1432]
[1754250801933,0.4615,3501.9,3501.5,0.1424]
[1754250802603,0.9237,3501.9,3501.5,0.1424]
[1754250802831,0.4622,3501.9,3501.5,0.1424]
[1754250803029,0.9237,3501.8,3501.5,0.1424]
[1754250803244,0.4615,3501.7,3501.5,0.1424]
[1754250803547,0.9237,3501.7,3501.5,0.1424]
[1754250805449,0.9237,3501.6,3501.5,0.1424]
[1754250807033,0.9237,3501.6,3501.4,4.5202]
[1754250807257,0.001,3501.8,3501.4,4.5202]
[1754250807258,0.9237,3501.5,3501.4,4.5202]
[1754250807552,0.4622,3501.5,3501.4,4.5202]
[1754250807733,0.9237,3501.5,3501.4,4.5202]
[1754250810140,0.9237,3501.5,3501.0,0.21915466]
[1754250810141,0.4615,3501.5,3501.0,4.59515466]
[1754250810478,0.8977,3501.5,3501.0,4.378]
[1754250810639,0.9211,3501.4,3501.0,4.378]
[1754250810839,0.001,3501.8,3501.0,4.378]
[1754250810840,0.551,3501.8,3501.0,4.378]
[1754250811068,0.9211,3501.3,3501.0,4.378]
[1754250811257,0.9211,3501.2,3501.0,0.002]
[1754250811663,4.3551,3501.7,3501.0,0.002]
[1754250811664,0.9211,3501.1,3501.0,0.002]
[1754250812781,1.4711,3501.1,3501.0,0.002]
[1754250812984,31.61821,3501.1,3501.0,0.002]
[1754250814756,34.61821,3501.1,3501.0,0.002]
[1754250817266,38.99421,3501.1,3501.0,0.002]
[1754250818494,8.99421,3501.1,3501.0,0.002]
[1754250820162,9.13741,3501.1,3501.0,0.002]
[1754250820563,39.13741,3501.1,3501.0,0.002]
[1754250826824,34.32521,3501.1,3501.0,0.002]
[1754250827026,39.13841,3501.1,3501.0,0.002]
[1754250831714,46.18841,3501.1,3501.0,0.002]
[1754250833811,41.81241,3501.1,3501.0,0.002]
[1754250834054,46.18741,3501.1,3501.0,0.002]
[1754250836069,41.81241,3501.1,3501.0,0.002]
[1754250836271,46.18741,3501.1,3501.0,0.002]
[1754250841769,41.81241,3501.1,3501.0,0.002]
[1754250841935,46.18741,3501.1,3501.0,0.002]
[1754250842669,46.22661,3501.1,3501.0,0.002]
[1754250843641,45.26631,3501.1,3501.0,0.002]
[1754250844347,45.75991,3501.1,3501.0,0.002]
[1754250844541,40.89131,3501.1,3501.0,0.002]
[1754250844745,7.1942,3501.1,3501.0,0.002]